bitfinex-derivatives/quotes_SOLF0:USTF0_20250518
["timestamp","ask_amount","ask_price","bid_price","bid_amount"]
[1747600421303,6.0284,165.81,165.78,85.74]
[1747600421621,135.07394862,165.89,165.78,85.74]
[1747600421802,27.0,165.88,165.78,85.74]
[1747600422005,6.0287,165.81,165.78,85.74]
[1747600422309,27.0,165.88,165.78,85.74]
[1747600422505,6.0287,165.81,165.78,85.74]
[1747600422809,27.0,165.88,165.78,85.74]
[1747600423212,6.0286,165.81,165.78,85.74]
[1747600423403,27.0,165.88,165.78,85.74]
[1747600423806,6.0289,165.8,165.78,85.74]
[1747600424008,27.0,165.88,165.78,85.74]
[1747600424610,43.64264862,165.87,165.74,85.72]
[1747600424812,27.0,165.86,165.74,85.72]
[1747600425007,85.72,165.85,165.74,85.72]
[1747600425207,85.3,165.84,165.74,85.72]
[1747600425406,85.3,165.84,165.73,6.0313]
[1747600425611,85.3,165.84,165.73,85.72]
[1747600425812,85.3,165.84,165.74,85.72]
[1747600426407,6.0289,165.8,165.74,85.72]
[1747600426613,85.3,165.84,165.74,85.72]
[1747600428011,6.0284,165.81,165.76,6.0302]
[1747600428212,85.3,165.84,165.76,6.0302]
[1747600428408,85.3,165.84,165.74,85.72]
[1747600429514,6.0299,165.77,165.74,85.72]
[1747600429710,85.3,165.84,165.74,85.72]
[1747600431114,16.64264862,165.83,165.74,85.72]
[1747600431304,27.0,165.82,165.68,521.34]
[1747600431509,33.0054,165.82,165.69,85.72]
[1747600431809,6.0294,165.79,165.69,85.72]
[1747600432013,85.14,165.78,165.69,85.72]
[1747600432418,85.14,165.78,165.64,6.0342]
[1747600432719,16.64264862,165.75,165.64,85.72]
[1747600432916,6.0336,165.67,165.64,85.72]
[1747600433111,85.12,165.72,165.64,85.72]
[1747600433417,6.0342,165.66,165.64,85.72]
[1747600434614,85.12,165.72,165.64,85.72]
[1747600434814,5.9952,165.74,165.64,85.72]
[1747600435107,85.08,165.73,165.64,85.72]
[1747600435817,6.0328,165.69,165.64,85.72]
[1747600436017,85.08,165.73,165.64,85.72]
[1747600436216,5.9952,165.74,165.64,85.72]
[1747600436412,6.032,165.71,165.64,91.7542]
[1747600436716,91.0552,165.74,165.64,91.7542]
[1747600436913,91.0552,165.74,165.64,85.72]
[1747600438521,6.0339,165.66,165.64,85.72]
[1747600439618,31.0457,165.74,165.64,85.72]
[1747600440120,6.0331,165.69,165.64,85.72]
[1747600440819,84.96,165.71,165.62,85.02]
[1747600442023,90.9921,165.71,165.65,6.0341]
[1747600442221,84.96,165.71,165.62,85.02]
[1747600442521,6.0325,165.7,165.64,6.0343]
[1747600442717,115.9657,165.74,165.62,85.02]
[1747600443512,6.0349,165.64,165.59,521.06]
[1747600443723,84.9,165.69,165.61,85.02]
[1747600444024,6.0335,165.67,165.61,91.0554]
[1747600444225,84.9,165.69,165.61,85.02]
[1747600444423,4.0457,165.74,165.61,85.02]
[1747600444828,6.0318,165.72,165.66,6.0337]
[1747600445027,4.0457,165.74,165.66,85.02]
[1747600447725,6.0326,165.7,165.66,85.02]
[1747600447928,4.0457,165.74,165.66,85.02]
[1747600448927,84.78,165.78,165.66,85.02]
[1747600449125,1.20641814,165.78,165.7,6.0321]
[1747600449321,1.20641814,165.78,165.71,85.02]
[1747600449526,7.23621814,165.78,165.72,6.0313]
[1747600449919,1.20641814,165.78,165.71,85.02]
[1747600450123,1.20641814,165.78,165.76,6.0302]
[1747600450320,1.20641814,165.78,165.76,91.0502]
[1747600450523,1.20641814,165.78,165.76,85.02]
[1747600452533,5.46873607,165.8,165.76,85.02]
[1747600453427,11.49753607,165.8,165.76,85.02]
[1747600453627,5.46873607,165.8,165.76,85.02]
[1747600454430,95.63747214,165.85,165.76,85.02]
[1747600454735,16.64264862,165.83,165.71,85.0]
[1747600454924,85.0,165.82,165.71,85.0]
[1747600455227,6.0308,165.75,165.71,85.0]
[1747600455434,84.62,165.79,165.71,85.0]
[1747600456132,84.6,165.83,165.71,85.0]
[1747600456834,6.0305,165.76,165.71,85.0]
[1747600457239,27.0,165.85,165.71,85.0]
[1747600457837,6.0287,165.81,165.71,85.0]
[1747600458035,27.0,165.85,165.71,85.0]
[1747600458336,6.0285,165.81,165.75,6.0303]
[1747600458535,6.0285,165.81,165.76,85.0]
[1747600459036,173.5396,165.86,165.76,85.0]
[1747600459238,173.5396,165.86,165.73,85.0]
[1747600459430,27.0,165.85,165.73,85.0]
[1747600459631,6.0283,165.82,165.73,85.0]
[1747600460139,6.0283,165.82,165.76,6.0299]
[1747600460338,6.0283,165.82,165.73,85.0]
[1747600460533,6.0283,165.82,165.76,6.0299]
[1747600460734,6.0286,165.81,165.76,6.0299]
[1747600461145,173.5396,165.86,165.76,6.0299]
[1747600461335,173.5396,165.86,165.73,85.0]
[1747600462237,6.0277,165.83,165.73,85.0]
[1747600462439,1.9711,165.86,165.73,85.0]
[1747600462835,6.0276,165.84,165.78,6.0291]
[1747600463042,1.9711,165.86,165.79,84.98]
[1747600463447,6.0275,165.84,165.79,91.009]
[1747600463647,1.9711,165.86,165.79,84.98]
[1747600464245,1.9711,165.86,165.79,91.0089]
[1747600464442,1.918,165.87,165.79,91.0089]
[1747600465351,88.8736,165.9,165.8,6.0287]
[1747600466047,6.0268,165.86,165.8,6.0287]
[1747600466254,88.8736,165.9,165.8,6.0287]
[1747600466552,3.8936,165.9,165.8,6.0287]
[1747600466753,6.0269,165.86,165.8,6.0287]
[1747600467553,127.66713963,165.91,165.79,84.98]
[1747600467755,127.66713963,165.91,165.79,605.98]
[1747600468252,5.46873607,165.97,165.81,16.60678103]
[1747600468560,3.9331,165.96,165.82,168.6]
[1747600468852,2.0251,165.96,165.82,168.6]
[1747600469042,5.46873607,165.97,165.82,168.6]
[1747600469245,6.0232,165.96,165.82,168.6]
[1747600470050,6.0234,165.95,165.82,168.6]
[1747600470353,5.46873607,165.97,165.82,168.6]
[1747600470549,6.0234,165.95,165.82,168.6]
[1747600470749,5.46873607,165.97,165.82,168.6]
[1747600472153,5.46873607,165.97,165.85,6.0266]
[1747600472348,5.46873607,165.97,165.82,168.6]
[1747600472556,27.0,165.99,165.82,168.6]
[1747600472850,6.0241,165.93,165.87,6.0259]
[1747600473052,6.0241,165.93,165.88,84.26]
[1747600473254,6.0237,165.94,165.88,84.26]
[1747600473454,27.0,165.99,165.88,84.26]
[1747600473854,6.0232,165.96,165.9,6.0249]
[1747600474654,27.0,165.99,165.9,6.0249]
[1747600474655,6.0234,165.95,165.9,6.0249]
[1747600474856,27.0,165.99,165.88,84.26]
[1747600475367,27.0,165.99,165.9,6.0251]
[1747600475555,6.0236,165.95,165.88,84.26]
[1747600475857,6.0236,165.95,165.89,6.0252]
[1747600476753,6.0236,165.95,165.9,6.0251]
[1747600477357,6.0236,165.95,165.89,6.0254]
[1747600477553,27.0,165.99,165.88,84.26]
[1747600477856,27.0,165.99,165.89,84.24]
[1747600478359,6.0243,165.93,165.89,84.24]
[1747600478762,27.0,165.99,165.89,90.2653]
[1747600478961,27.0,165.99,165.89,84.24]
[1747600480161,6.0229,165.96,165.9,6.0249]
[1747600480352,27.0,165.99,165.9,6.0249]
[1747600480553,27.0,165.99,165.89,84.24]
[1747600482169,27.0,165.99,165.89,604.84]
[1747600483364,6.0214,166.01,165.89,604.84]
[1747600483863,6.0215,166.0,165.95,6.023]
[1747600484063,6.0215,166.0,165.96,84.24]
[1747600484654,6.0212,166.01,165.96,84.24]
[1747600484860,1.9407,166.04,165.96,84.24]
[1747600485059,3.9853,166.07,165.96,84.24]
[1747600486768,3.9853,166.07,165.96,90.2627]
[1747600487258,3.9853,166.07,165.96,84.24]
[1747600487458,3.9853,166.07,165.97,6.0223]
[1747600487959,3.9853,166.07,165.98,6.0221]
[1747600488266,3.9853,166.07,165.96,84.24]
[1747600488569,6.021,166.02,165.96,90.2627]
[1747600488761,3.9853,166.07,165.96,90.2627]
[1747600488957,6.021,166.02,165.96,90.2627]
[1747600489471,3.9853,166.07,165.96,84.24]
[1747600489654,6.0198,166.05,165.96,100.84678103]
[1747600490169,6.0198,166.05,165.99,6.0218]
[1747600490354,3.9853,166.07,166.0,83.78]
[1747600490558,3.9853,166.07,166.01,84.2]
[1747600490967,6.0198,166.05,166.01,84.2]
[1747600491267,3.9853,166.07,166.01,84.2]
[1747600491965,6.0188,166.08,166.01,84.2]
[1747600492170,2.0599,166.11,166.02,6.0207]
[1747600492568,6.0189,166.08,166.01,84.2]
[1747600493263,110.72,166.13,166.01,84.2]
[1747600493664,6.0197,166.05,166.01,84.2]
[1747600493866,110.72,166.13,166.01,90.221]
[1747600494165,6.0195,166.06,166.01,90.221]
[1747600494372,110.72,166.13,166.01,84.2]
[1747600494778,6.0199,166.05,166.01,84.2]
[1747600495869,110.72,166.13,166.01,84.2]
[1747600496070,27.0,166.12,166.01,84.2]
[1747600496970,6.0199,166.05,166.01,90.2211]
[1747600497171,6.0199,166.05,166.01,84.2]
[1747600498072,6.0201,166.04,166.01,84.2]
[1747600498370,27.0,166.12,166.01,90.221]
[1747600498670,6.0197,166.05,166.01,90.221]
[1747600498966,27.0,166.12,166.01,84.2]
[1747600499270,6.0196,166.06,166.01,84.2]
[1747600499664,6.0196,166.06,166.02,6.0204]
[1747600499866,6.0196,166.06,166.01,84.2]
[1747600500068,6.0191,166.07,166.01,84.2]
[1747600500970,6.0187,166.08,166.03,6.0201]
[1747600501675,6.019,166.07,166.03,6.0201]
[1747600501870,27.0,166.12,166.03,6.0201]
[1747600502672,27.0,166.12,166.04,6.02]
[1747600502875,27.0,166.12,166.01,84.2]
[1747600503171,27.0,166.12,166.03,6.0203]
[1747600503473,27.0,166.12,166.01,84.2]
[1747600503675,6.0192,166.07,166.02,6.0207]
[1747600504270,6.0186,166.08,166.03,6.0202]
[1747600504674,27.0,166.12,166.01,84.2]
[1747600504974,6.02,166.05,166.01,84.2]
[1747600505275,6.0196,166.06,166.01,173.641]
[1747600505580,27.0,166.12,166.01,167.62]
[1747600505966,6.0205,166.03,166.01,167.62]
[1747600506172,27.0,166.12,166.01,167.62]
[1747600506374,10.34774165,166.1,165.99,603.98]
[1747600506573,2.0088,166.09,165.99,603.98]
[1747600507775,10.34774165,166.07,165.99,603.98]
[1747600508087,6.0215,166.0,165.99,83.56]
[1747600508378,6.0215,166.0,165.91,731.61867158]
[1747600508573,6.0215,166.0,165.95,6.0231]
[1747600508779,6.0215,166.0,165.92,166.92]
[1747600508977,6.0215,166.0,165.95,6.023]
[1747600509177,6.0219,165.99,165.92,166.92]
[1747600509479,87.4335,166.06,165.92,166.92]
[1747600509778,6.0216,166.0,165.96,6.0229]
[1747600509980,6.0216,166.0,165.97,83.56]
[1747600510180,6.0219,165.99,165.97,83.56]
[1747600511183,6.0222,165.98,165.97,83.56]
[1747600511680,6.0233,165.95,165.91,737.64327158]
[1747600511882,83.3,166.01,165.92,83.56]
[1747600512082,83.28,166.02,165.92,83.56]
[1747600513481,6.0221,165.99,165.92,83.56]
[1747600513982,83.28,166.02,165.92,83.56]
[1747600514786,6.0225,165.98,165.94,6.0237]
[1747600515883,83.28,166.02,165.92,83.56]
[1747600516284,6.0218,165.99,165.94,6.0234]
[1747600516483,83.28,166.02,165.94,6.0234]
[1747600517077,6.0225,165.98,165.94,6.0234]
[1747600517282,83.28,166.02,165.93,6.0239]
[1747600517581,83.28,166.02,165.92,83.56]
[1747600517987,83.28,166.02,165.94,6.0234]
[1747600518180,6.0221,165.99,165.92,83.56]
[1747600518486,6.0221,165.99,165.94,6.0233]
[1747600518682,83.28,166.02,165.92,83.56]
[1747600518987,1.9422,166.01,165.92,83.56]
[1747600519187,1.9422,166.01,165.93,6.0237]
[1747600519486,6.0225,165.98,165.93,6.0237]
[1747600520484,6.0226,165.97,165.93,6.0237]
[1747600520879,1.9422,166.01,165.94,6.0236]
[1747600521180,6.0223,165.98,165.94,6.0236]
[1747600521882,1.9422,166.01,165.92,83.56]
[1747600522385,6.0219,165.99,165.95,6.023]
[1747600523386,6.0216,166.0,165.95,6.023]
[1747600523583,1.9422,166.01,165.96,6.0227]
[1747600523983,6.0217,166.0,165.96,6.0227]
[1747600524181,83.56,166.05,165.92,83.56]
[1747600524381,166.62,166.05,165.92,83.56]
[1747600525090,6.0219,165.99,165.92,83.56]
[1747600525587,166.62,166.05,165.93,6.024]
[1747600525787,166.62,166.05,165.92,83.56]
[1747600526186,89.0809,166.06,165.92,83.56]
[1747600526390,6.0208,166.02,165.97,6.0224]
[1747600526591,6.0208,166.02,165.98,83.58]
[1747600527085,89.0809,166.06,165.98,83.58]
[1747600528391,6.0205,166.03,165.98,89.6021]
[1747600528890,6.0205,166.03,165.99,6.0218]
[1747600529090,6.0205,166.03,165.98,83.58]
[1747600529591,6.0201,166.04,165.99,6.0218]
[1747600529780,6.0609,166.06,165.98,83.58]
[1747600530489,4.0735,166.06,165.98,83.58]
[1747600531192,5.46873607,166.09,165.98,83.58]
[1747600531690,5.46873607,166.09,166.01,10.34202627]
[1747600531891,5.46873607,166.09,166.01,93.24202627]
[1747600532586,1.8914,166.11,166.01,93.24202627]
[1747600532788,3.928,166.12,166.04,10.34202627]
[1747600532991,3.928,166.12,166.05,82.94]
[1747600533494,3.928,166.12,166.07,6.0187]
[1747600533693,3.928,166.12,166.05,82.94]
[1747600533881,88.32873607,166.15,166.08,6.0184]
[1747600534290,5.46873607,166.15,166.05,82.94]
[1747600534591,5.46873607,166.15,166.07,10.34202627]
[1747600534791,5.46873607,166.15,166.1,10.34202627]
[1747600534992,5.46873607,166.15,166.11,165.76]
[1747600536491,82.8,166.21,166.09,6.0182]
[1747600536492,93.14202627,166.21,166.09,82.92]
[1747600536695,28.20336943,166.2,166.09,82.92]
[1747600536999,1.20344184,166.19,166.09,82.92]
[1747600537385,2.0054,166.18,166.09,82.92]
[1747600537796,6.0174,166.12,166.09,82.92]
[1747600537994,82.74,166.16,166.09,82.92]
[1747600538293,4.0572,166.15,166.09,82.92]
[1747600538997,6.0176,166.11,166.09,82.92]
[1747600539892,6.0172,166.12,166.09,82.92]
[1747600540499,6.0175,166.11,166.09,82.92]
[1747600540705,4.0572,166.15,166.09,82.92]
[1747600541004,6.0172,166.12,166.09,82.92]
[1747600541498,4.0572,166.15,166.09,82.92]
[1747600541699,6.0178,166.11,166.09,82.92]
[1747600541894,4.0572,166.15,166.09,82.92]
[1747600542297,2.0054,166.18,166.09,82.92]
[1747600542704,6.0157,166.16,166.09,82.92]
[1747600543095,5.33974184,166.19,166.1,10.34202627]
[1747600543395,1.20344184,166.19,166.13,10.34202627]
[1747600543594,1.20344184,166.19,166.14,82.9]
[1747600544499,5.46873607,166.23,166.16,10.34202627]
[1747600544691,5.46873607,166.23,166.19,10.34202627]
[1747600544895,5.46873607,166.23,166.2,82.88]
[1747600545400,5.46873607,166.23,166.21,6.0136]
[1747600545602,5.46873607,166.23,166.2,82.88]
[1747600545803,7.29164809,166.25,166.2,82.88]
[1747600545995,8.4946556,166.25,166.22,10.34202627]
[1747600546300,1.20300751,166.25,166.22,82.56]
[1747600546996,7.21550751,166.25,166.22,82.56]
[1747600547199,1.20300751,166.25,166.22,82.56]
[1747600548101,6.0128,166.24,166.22,82.56]
[1747600548803,7.21550751,166.25,166.22,82.56]
[1747600549694,2.0438,166.32,166.22,82.56]
[1747600549898,1.2025735,166.31,166.22,82.56]
[1747600551104,6.0122,166.26,166.23,82.84]
[1747600551298,6.0122,166.26,166.21,519.8]
[1747600551508,93.16863913,166.27,166.13,82.84]
[1747600551703,10.32863913,166.24,166.13,82.84]
[1747600552009,84.4404,166.23,166.13,82.84]
[1747600552709,6.015,166.18,166.13,82.84]
[1747600553501,84.4404,166.23,166.13,82.84]
[1747600554507,6.016,166.16,166.13,82.84]
[1747600554806,84.4404,166.23,166.13,82.84]
[1747600556308,6.016,166.16,166.13,82.84]
[1747600556710,84.4404,166.23,166.13,82.84]
[1747600557018,6.0159,166.16,166.13,82.84]
[1747600557613,27.0,166.22,166.13,82.84]
[1747600558105,33.0139,166.22,166.17,6.0152]
[1747600558310,27.0,166.22,166.13,82.84]
[1747600558709,6.0145,166.2,166.16,6.0155]
[1747600558910,27.0,166.22,166.13,82.84]
[1747600559208,6.0141,166.21,166.17,6.015]
[1747600560412,6.0141,166.21,166.16,6.0156]
[1747600560714,27.0,166.22,166.13,82.84]
[1747600561215,6.0152,166.18,166.13,82.84]
[1747600561511,27.0,166.22,166.13,82.84]
[1747600561714,6.0158,166.16,166.13,82.84]
[1747600562014,27.0,166.22,166.13,82.84]
[1747600562208,6.0156,166.17,166.13,82.84]
[1747600562408,27.0,166.22,166.13,82.84]
[1747600562607,27.0,166.22,166.13,88.8567]
[1747600562810,27.0,166.22,166.13,82.84]
[1747600563113,27.0,166.22,166.14,6.0163]
[1747600563308,12.017,166.36,166.15,82.22]
[1747600563613,3.9389,166.3,166.2,6.0142]
[1747600563816,3.9389,166.3,166.21,82.28]
[1747600564713,6.0118,166.27,166.21,82.28]
[1747600565412,6.0118,166.27,166.23,6.0129]
[1747600566018,6.0113,166.28,166.24,6.0126]
[1747600566611,6.0117,166.27,166.23,6.013]
[1747600567023,3.9389,166.3,166.23,6.013]
[1747600567209,6.0114,166.28,166.23,6.013]
[1747600567518,6.0114,166.28,166.24,6.0127]
[1747600567713,6.0118,166.27,166.21,82.28]
[1747600568418,6.0118,166.27,166.23,6.0131]
[1747600569220,6.0118,166.27,166.22,6.0134]
[1747600569617,6.0118,166.27,166.21,82.28]
[1747600570322,3.9389,166.3,166.21,82.28]
[1747600572121,6.0116,166.28,166.21,82.28]
[1747600572621,6.0119,166.27,166.23,6.0128]
[1747600573022,3.9389,166.3,166.21,82.28]
[1747600573220,3.9389,166.3,166.21,88.2938]
[1747600573421,3.9389,166.3,166.21,82.28]
[1747600573721,6.012,166.27,166.23,6.0128]
[1747600574022,3.9389,166.3,166.21,82.28]
[1747600574321,6.0116,166.28,166.21,82.28]
[1747600574525,3.9389,166.3,166.21,82.28]
[1747600575118,6.0119,166.27,166.23,6.0129]
[1747600575520,6.0119,166.27,166.21,82.28]
[1747600575823,6.0114,166.28,166.21,82.28]
[1747600576224,3.9389,166.3,166.23,6.0129]
[1747600576422,6.0118,166.27,166.23,6.0129]
[1747600576725,81.98,166.33,166.25,6.0121]
[1747600576923,6.0104,166.31,166.21,82.28]
[1747600577123,3.8193,166.32,166.21,82.28]
[1747600577324,3.8193,166.32,166.26,6.012]
[1747600578620,6.0107,166.3,166.26,6.012]
[1747600579224,6.011,166.29,166.25,6.0123]
[1747600579427,3.8193,166.32,166.25,6.0123]
[1747600579728,6.0109,166.3,166.25,6.0123]
[1747600580018,6.0109,166.3,166.21,82.28]
[1747600580019,3.8193,166.32,166.21,82.28]
[1747600580522,6.0109,166.3,166.25,6.0121]
[1747600581027,6.0111,166.29,166.25,6.0121]
[1747600581328,3.8193,166.32,166.21,82.28]
[1747600581526,6.0109,166.3,166.21,82.28]
[1747600581724,6.0109,166.3,166.25,6.0122]
[1747600581921,6.0109,166.3,166.21,82.28]
[1747600582229,6.0109,166.3,166.26,6.0119]
[1747600582425,6.0109,166.3,166.26,88.2519]
[1747600582927,6.0102,166.32,166.27,6.0115]
[1747600583432,3.9124,166.34,166.27,6.0115]
[1747600583726,14.23212934,166.34,166.26,82.24]
[1747600584032,6.0107,166.3,166.26,82.24]
[1747600584329,6.0107,166.3,166.26,88.2518]
[1747600585334,6.0107,166.3,166.27,6.0116]
[1747600586034,3.9124,166.34,166.26,88.2519]
[1747600586333,3.9124,166.34,166.26,82.24]
[1747600586839,10.31972934,166.3,166.17,5.53563788]
[1747600587028,10.31972934,166.27,166.17,87.75563788]
[1747600587229,3.8975,166.26,166.17,87.75563788]
[1747600587834,3.8975,166.26,166.17,88.2351]
[1747600588230,3.8975,166.26,166.17,82.22]
[1747600588431,6.0136,166.22,166.18,6.0147]
[1747600588725,3.8975,166.26,166.17,82.22]
[1747600588936,6.0136,166.22,166.19,6.0145]
[1747600589648,3.8975,166.26,166.18,6.0148]
[1747600590143,6.0138,166.22,166.18,6.0148]
[1747600590538,6.0138,166.22,166.19,6.0146]
[1747600591343,3.8975,166.26,166.17,82.22]
[1747600591741,3.8975,166.26,166.19,6.0143]
[1747600591943,1.9765,166.29,166.17,92.53972934]
[1747600592340,7.9878,166.29,166.17,92.53972934]
[1747600592746,1.9765,166.29,166.17,92.53972934]
[1747600593145,6.0114,166.28,166.23,6.0129]
[1747600593343,1.9765,166.29,166.24,81.76]
[1747600593842,10.31972934,166.36,166.24,81.76]
[1747600594146,7.24478846,166.37,166.26,10.31972934]
[1747600594347,7.24478846,166.37,166.27,81.7]
[1747600594544,13.25318846,166.37,166.33,6.0094]
[1747600594845,7.24478846,166.37,166.33,81.76]
[1747600595046,7.24478846,166.37,166.36,6.0085]
[1747600595240,7.24478846,166.37,166.29,10.31972934]
[1747600595440,7.24478846,166.37,166.3,163.42]
[1747600595644,7.24478846,166.37,166.31,81.74]
[1747600596146,6.0085,166.36,166.31,81.74]
[1747600596542,7.24478846,166.37,166.31,81.74]
[1747600596744,6.0082,166.37,166.31,87.7502]
[1747600597741,6.0087,166.36,166.31,87.7502]
[1747600598148,6.0087,166.36,166.31,81.74]
[1747600598449,6.0089,166.35,166.31,81.74]
[1747600598750,2.0105,166.41,166.31,81.74]
[1747600598951,6.0095,166.34,166.32,81.74]
[1747600599350,2.0105,166.41,166.32,81.74]
[1747600599747,6.0095,166.33,166.32,81.74]
[1747600600139,81.6,166.4,166.32,81.74]
[1747600600948,6.0095,166.33,166.32,81.74]
[1747600602449,81.6,166.4,166.29,81.72]
[1747600603451,6.0093,166.34,166.29,81.72]
[1747600603650,6.0093,166.34,166.29,87.7307]
[1747600603845,6.0093,166.34,166.29,81.72]
[1747600604150,6.0095,166.33,166.29,81.72]
[1747600604352,81.6,166.4,166.29,87.7307]
[1747600604649,6.0094,166.34,166.29,87.7307]
[1747600605051,2.0105,166.41,166.29,87.7307]
[1747600605251,83.5505,166.41,166.29,81.72]
[1747600605749,6.0091,166.35,166.3,6.0103]
[1747600606350,6.0091,166.35,166.31,6.0101]
[1747600607648,6.0091,166.35,166.3,6.0105]
[1747600607950,83.5505,166.41,166.29,81.72]
[1747600608252,6.0093,166.34,166.29,87.7307]
[1747600608756,83.5505,166.41,166.29,87.7307]
[1747600608948,6.0095,166.34,166.29,87.7307]
[1747600609149,83.5505,166.41,166.29,87.7307]
[1747600609352,83.5505,166.41,166.3,6.0106]
[1747600609648,6.0089,166.35,166.3,6.0106]
[1747600610154,6.0089,166.35,166.31,6.0102]
[1747600610654,6.0089,166.35,166.3,6.0105]
[1747600611053,6.0089,166.35,166.29,81.72]
[1747600611457,6.0085,166.36,166.29,81.72]
[1747600612055,6.0082,166.37,166.29,81.72]
[1747600612356,83.4305,166.41,166.29,81.72]
[1747600613058,6.0088,166.35,166.31,6.0102]
[1747600613254,83.4305,166.41,166.31,81.7]
[1747600614254,6.0087,166.36,166.32,6.0096]
[1747600614456,83.4305,166.41,166.31,81.7]
[1747600614855,83.4305,166.41,166.24,22.03000364]
[1747600615055,16.49436576,166.39,166.25,168.61563788]
[1747600615254,2.0612,166.38,166.25,168.61563788]
[1747600615658,10.31507554,166.37,166.25,168.61563788]
[1747600615854,81.38,166.36,166.26,81.7]
[1747600616047,6.0113,166.29,166.26,81.7]
[1747600616254,10.31507554,166.34,166.25,5.53563788]
[1747600616456,1.9787,166.33,166.25,5.53563788]
[1747600617252,6.011,166.29,166.25,11.54803788]
[1747600617453,6.011,166.29,166.25,5.53563788]
[1747600617655,6.0116,166.28,166.25,5.53563788]
[1747600617954,1.9787,166.33,166.25,5.53563788]
[1747600618259,6.0111,166.29,166.25,11.54773788]
[1747600618454,6.0111,166.29,166.25,6.0121]
[1747600618655,1.9787,166.33,166.24,81.7]
[1747600619159,1.9787,166.33,166.22,601.3]
[1747600619356,6.0118,166.27,166.23,6.0128]
[1747600619558,81.34,166.31,166.23,6.0128]
[1747600619757,1.9501,166.3,166.23,6.0128]
[1747600620148,1.898,166.29,166.22,607.3134]
[1747600620555,6.0121,166.26,166.22,601.3]
[1747600620756,1.898,166.29,166.22,601.3]
[1747600620964,1.898,166.29,166.19,81.32]
[1747600621261,6.0135,166.22,166.19,81.32]
[1747600621448,6.0135,166.22,166.18,81.32]
[1747600621657,1.898,166.29,166.18,81.32]
[1747600621858,1.898,166.29,166.19,6.0146]
[1747600622161,1.898,166.29,166.18,81.32]
[1747600622359,1.898,166.29,166.18,87.3347]
[1747600622558,1.898,166.29,166.18,81.32]
[1747600622758,6.0135,166.22,166.18,81.32]
[1747600622958,1.898,166.29,166.15,5.53563788]
[1747600622959,81.3,166.25,166.15,5.53563788]
[1747600623561,6.0139,166.21,166.17,6.0152]
[1747600624062,6.0139,166.21,166.16,6.0156]
[1747600624257,6.0139,166.21,166.15,5.53563788]
[1747600624466,81.3,166.25,166.14,519.34]
[1747600624958,6.0136,166.22,166.14,519.34]
[1747600625154,81.3,166.25,166.18,6.0149]
[1747600625361,81.3,166.25,166.14,519.34]
[1747600625558,162.64,166.25,166.12,81.34]
[1747600626463,6.0142,166.21,166.16,6.0155]
[1747600626764,162.64,166.25,166.12,162.6]
[1747600627868,162.64,166.25,166.16,6.0154]